Workbook

Sheet на 01.02.2025
A1: Сведения
A2: об исполнении бюджета города Набережные Челны
A3: на 01.02.2025 года
D4: тыс. руб.
A5: № п/п | B5: Наименование | C5: Бюджет с учетом уточненных МФ РТ безвозмездных поступлений по состоянию на 01.02.2025 | D5: Исполнение бюджета на 01.02.2025 года | E5: % исполнения годового плана
A7: 1 | B7: 2 | C7: 3 | D7: 4 | E7: 5
A8: ДОХОДЫ
B9: Налоговые доходы | C9: =SUM(C10:C18) -> 9,363,043 | D9: =SUM(D10:D18) -> 502,412 | E9: =D9/C9*100 -> 5.4
A10: 1 | B10: Налог на доходы физ.лиц | C10: 6,867,616 | D10: 380,741 | E10: =D10/C10*100 -> 5.5
A11: 2 | B11: Акцизы по подакцизным товарам (продукции), производимым на территории Российской Федерации | C11: 70,216 | D11: 6,107 | E11: =D11/C11*100 -> 8.7
A12: 3 | B12: Единый налог, взимаемый в связи с применением упрощенной системы налогообложения | C12: 1,278,987 | D12: 503 | E12: 0.0
A13: 4 | B13: Единый сельскохозяйственный налог | C13: 162 | E13: 0.0
A14: 5 | B14: Налог, взимаемый в связи с применением патентной системы налогообложения, зачисляемый в бюджеты городских округов | C14: 200,000 | D14: 90,983 | E14: 45.5
A15: 6 | B15: Налог на имущество физ.лиц | C15: 447,468 | D15: 9,585 | E15: 2.1
A16: 7 | B16: Земельный налог | C16: 406,000 | D16: -3,482 | E16: -0.9
A17: 8 | B17: Госпошлина | C17: 82,564 | D17: 17,662 | E17: 21.4
A18: 9 | B18: Прочие налоговые доходы | C18: 10,030.0 | D18: 314.6 | E18: 3.1
B19: Неналоговые доходы | C19: =SUM(C20:C24) -> 805,558 | D19: =SUM(D20:D24) -> 136,819 | E19: =D19/C19*100 -> 17.0
A20: 1 | B20: Арендная плата за землю | C20: 458,500 | D20: 108,759 | E20: =D20/C20*100 -> 23.7
A21: 2 | B21: Доходы от сдачи в аренду имущества | C21: 40,837 | D21: 7,626 | E21: 18.7
A22: 3 | B22: Доходы от реализации имущества | C22: 13,298 | D22: 0 | E22: 0.0
A23: 4 | B23: Доходы от продажи земельных участков | C23: 143,000 | D23: 9,415 | E23: 6.6
A24: 5 | B24: Прочие неналоговые доходы | C24: 149,923.0 | D24: 11,018.8 | E24: 7.3
B25: Итого собственных доходов | C25: =C9+C19 -> 10,168,601.4 | D25: =SUM(D9+D19) -> 639,232 | E25: 6.3
B26: Безвозмездные поступления | C26: 8,779,767.2 | D26: 1,194,418 | E26: 13.6
B27: Всего доходов | C27: =C26+C25 -> 18,948,369 | D27: =D26+D25 -> 1,833,649 | E27: =D27/C27*100 -> 9.7
A28: РАСХОДЫ
A29: № п/п | B29: Расходы местного бюджета | C29: =SUM(C30:C40) -> 19,024,459 | D29: =SUM(D30:D40) -> 1,816,178 | E29: 9.5
A30: 1 | B30: общегосударственные вопросы | C30: 695,318 | D30: 23,187 | E30: =D30/C30*100 -> 3.3
A31: 2 | B31: национальная безопасность и правоохранительная деятельность | C31: 138,760 | D31: 3,550 | E31: =D31/C31*100 -> 2.6
A32: 3 | B32: национальная экономика | C32: 747,914 | D32: 91,403 | E32: 12.2
A33: 4 | B33: жилищно-коммунальное хозяйство | C33: 751,105 | D33: 55,518 | E33: 7.4
A34: 5 | B34: охрана окружающей среды | C34: 27,386 | D34: 0 | E34: 0.0
A35: 6 | B35: образование | C35: 14,475,623 | D35: 1,590,272 | E35: 11.0
A36: 7 | B36: культура и кинематография | C36: 732,943 | D36: 15,017 | E36: 2.0
A37: 8 | B37: здравоохранение | C37: 10,699 | D37: 181 | E37: 1.7
A38: 9 | B38: социальная политика | C38: 451,680 | D38: 8,802 | E38: 1.9
A39: 10 | B39: физическая культура и спорт | C39: 988,402 | D39: 27,862 | E39: 2.8
A40: 11 | B40: межбюджетные трансферты | C40: 4,630 | D40: 386 | E40: 8.3
B41: Профицит, дефицит (-) | C41: =C27-C29 -> -76,090 | D41: =D27-D29 -> 17,471
B43: Заместитель Руководителя
B44: Исполнительного комитета,
B45: начальник управления финансов | C45: С.Р. Мулюкова

Sheet на 01.03.2025
A1: Сведения
A2: об исполнении бюджета города Набережные Челны
A3: на 01.03.2025 года
D4: тыс. руб.
A5: № п/п | B5: Наименование | C5: Бюджет с учетом уточненных МФ РТ безвозмездных поступлений по состоянию на 01.03.2025 | D5: Исполнение бюджета на 01.03.2025 года | E5: % исполнения годового плана
A7: 1 | B7: 2 | C7: 3 | D7: 4 | E7: 5
A8: ДОХОДЫ
B9: Налоговые доходы | C9: =SUM(C10:C18) -> 9,363,043 | D9: =SUM(D10:D18) -> 1,146,208 | E9: =D9/C9*100 -> 12.2
A10: 1 | B10: Налог на доходы физ.лиц | C10: 6,867,616 | D10: 936,758 | E10: 13.6
A11: 2 | B11: Акцизы по подакцизным товарам (продукции), производимым на территории Российской Федерации | C11: 70,216 | D11: 7,266 | E11: 10.3
A12: 3 | B12: Единый налог, взимаемый в связи с применением упрощенной системы налогообложения | C12: 1,278,987 | D12: 3,101 | E12: 0.2
A13: 4 | B13: Единый сельскохозяйственный налог | C13: 162 | D13: -0 | E13: -0.2
A14: 5 | B14: Налог, взимаемый в связи с применением патентной системы налогообложения, зачисляемый в бюджеты городских округов | C14: 200,000 | D14: 92,609 | E14: 46.3
A15: 6 | B15: Налог на имущество физ.лиц | C15: 447,468 | D15: 14,889 | E15: 3.3
A16: 7 | B16: Земельный налог | C16: 406,000 | D16: 52,684 | E16: 13.0
A17: 8 | B17: Госпошлина | C17: 82,564 | D17: 38,407 | E17: 46.5
A18: 9 | B18: Прочие налоговые доходы | C18: 10,030.0 | D18: 494.2 | E18: 4.9
B19: Неналоговые доходы | C19: =SUM(C20:C24) -> 805,558 | D19: =SUM(D20:D24) -> 245,905 | E19: 30.5
A20: 1 | B20: Арендная плата за землю | C20: 458,500 | D20: 173,560 | E20: 37.9
A21: 2 | B21: Доходы от сдачи в аренду имущества | C21: 40,837 | D21: 9,221 | E21: 22.6
A22: 3 | B22: Доходы от реализации имущества | C22: 13,298 | D22: 0 | E22: 0.0
A23: 4 | B23: Доходы от продажи земельных участков | C23: 143,000 | D23: 19,794 | E23: 13.8
A24: 5 | B24: Прочие неналоговые доходы | C24: 149,923.0 | D24: 43,329.9 | E24: 28.9
B25: Итого собственных доходов | C25: =C9+C19 -> 10,168,601.4 | D25: =SUM(D9+D19) -> 1,392,113 | E25: 13.7
B26: Безвозмездные поступления | C26: 9,171,175.6 | D26: 1,896,421 | E26: 20.7
B27: Всего доходов | C27: =C26+C25 -> 19,339,777 | D27: =D26+D25 -> 3,288,533 | E27: 17.0
A28: РАСХОДЫ
A29: № п/п | B29: Расходы местного бюджета | C29: =SUM(C30:C40) -> 19,024,459 | D29: =SUM(D30:D40) -> 1,816,178 | E29: =D29/C29*100 -> 9.5
A30: 1 | B30: общегосударственные вопросы | C30: 695,318 | D30: 23,187 | E30: 3.3
A31: 2 | B31: национальная безопасность и правоохранительная деятельность | C31: 138,760 | D31: 3,550 | E31: 2.6
A32: 3 | B32: национальная экономика | C32: 747,914 | D32: 91,403 | E32: 12.2
A33: 4 | B33: жилищно-коммунальное хозяйство | C33: 751,105 | D33: 55,518 | E33: 7.4
A34: 5 | B34: охрана окружающей среды | C34: 27,386 | D34: 0 | E34: 0.0
A35: 6 | B35: образование | C35: 14,475,623 | D35: 1,590,272 | E35: 11.0
A36: 7 | B36: культура и кинематография | C36: 732,943 | D36: 15,017 | E36: 2.0
A37: 8 | B37: здравоохранение | C37: 10,699 | D37: 181 | E37: 1.7
A38: 9 | B38: социальная политика | C38: 451,680 | D38: 8,802 | E38: 1.9
A39: 10 | B39: физическая культура и спорт | C39: 988,402 | D39: 27,862 | E39: 2.8
A40: 11 | B40: межбюджетные трансферты | C40: 4,630 | D40: 386 | E40: 8.3
B41: Профицит, дефицит (-) | C41: =C27-C29 -> 315,318 | D41: =D27-D29 -> 1,472,355
B43: Заместитель Руководителя
B44: Исполнительного комитета,
B45: начальник управления финансов | C45: С.Р. Мулюкова

Sheet на 01.04.2025
A1: Сведения
A2: об исполнении бюджета города Набережные Челны
A3: на 01.04.2025 года
D4: тыс. руб.
A5: № п/п | B5: Наименование | C5: Бюджет с учетом уточненных МФ РТ безвозмездных поступлений по состоянию на 01.04.2025 | D5: Исполнение бюджета на 01.04.2025 года | E5: % исполнения годового плана
A7: 1 | B7: 2 | C7: 3 | D7: 4 | E7: 5
A8: ДОХОДЫ
B9: Налоговые доходы | C9: =SUM(C10:C18) -> 9,363,043 | D9: =SUM(D10:D18) -> 1,823,220 | E9: =D9/C9*100 -> 19.5
A10: 1 | B10: Налог на доходы физ.лиц | C10: 6,867,616 | D10: 1,452,917 | E10: =D10/C10*100 -> 21.2
A11: 2 | B11: Акцизы по подакцизным товарам (продукции), производимым на территории Российской Федерации | C11: 70,216 | D11: 17,334 | E11: =D11/C11*100 -> 24.7
A12: 3 | B12: Единый налог, взимаемый в связи с применением упрощенной системы налогообложения | C12: 1,278,987 | D12: 118,637 | E12: 9.3
A13: 4 | B13: Единый сельскохозяйственный налог | C13: 162 | D13: 107 | E13: =D13/C13*100 -> 66.1
A14: 5 | B14: Налог, взимаемый в связи с применением патентной системы налогообложения, зачисляемый в бюджеты городских округов | C14: 200,000 | D14: 92,903 | E14: 46.5
A15: 6 | B15: Налог на имущество физ.лиц | C15: 447,468 | D15: 18,887 | E15: 4.2
A16: 7 | B16: Земельный налог | C16: 406,000 | D16: 62,039 | E16: 15.3
A17: 8 | B17: Госпошлина | C17: 82,564 | D17: 59,706 | E17: 72.3
A18: 9 | B18: Прочие налоговые доходы | C18: 10,030.0 | D18: 689.2 | E18: 6.9
B19: Неналоговые доходы | C19: =SUM(C20:C24) -> 805,558 | D19: =SUM(D20:D24) -> 318,495 | E19: =D19/C19*100 -> 39.5
A20: 1 | B20: Арендная плата за землю | C20: 458,500 | D20: 214,489 | E20: =D20/C20*100 -> 46.8
A21: 2 | B21: Доходы от сдачи в аренду имущества | C21: 40,837 | D21: 10,824 | E21: 26.5
A22: 3 | B22: Доходы от реализации имущества | C22: 13,298 | D22: 0 | E22: 0.0
A23: 4 | B23: Доходы от продажи земельных участков | C23: 143,000 | D23: 35,730 | E23: 25.0
A24: 5 | B24: Прочие неналоговые доходы | C24: 149,923.0 | D24: 57,451.2 | E24: 38.3
B25: Итого собственных доходов | C25: =C9+C19 -> 10,168,601.4 | D25: =SUM(D9+D19) -> 2,141,715 | E25: 21.1
B26: Безвозмездные поступления | C26: 10,663,316.9 | D26: 3,349,776 | E26: 31.4
B27: Всего доходов | C27: =C26+C25 -> 20,831,918 | D27: =D26+D25 -> 5,491,491 | E27: =D27/C27*100 -> 26.4
A28: РАСХОДЫ
A29: № п/п | B29: Расходы местного бюджета | C29: =SUM(C30:C40) -> 21,066,986 | D29: =SUM(D30:D40) -> 5,611,196 | E29: 26.6
A30: 1 | B30: общегосударственные вопросы | C30: 1,051,512 | D30: 170,772 | E30: =D30/C30*100 -> 16.2
A31: 2 | B31: национальная безопасность и правоохранительная деятельность | C31: 159,957 | D31: 26,037 | E31: =D31/C31*100 -> 16.3
A32: 3 | B32: национальная экономика | C32: 1,805,725 | D32: 666,230 | E32: 36.9
A33: 4 | B33: жилищно-коммунальное хозяйство | C33: 833,832 | D33: 173,823 | E33: 20.8
A34: 5 | B34: охрана окружающей среды | C34: 19,879 | D34: 0 | E34: 0.0
A35: 6 | B35: образование | C35: 14,878,484 | D35: 3,904,066 | E35: 26.2
A36: 7 | B36: культура и кинематография | C36: 766,479 | D36: 207,747 | E36: 27.1
A37: 8 | B37: здравоохранение | C37: 10,699 | D37: 2,197 | E37: 20.5
A38: 9 | B38: социальная политика | C38: 562,914 | D38: 88,889 | E38: 15.8
A39: 10 | B39: физическая культура и спорт | C39: 972,874 | D39: 370,277 | E39: 38.1
A40: 11 | B40: межбюджетные трансферты | C40: 4,630 | D40: 1,158 | E40: 25.0
B41: Профицит, дефицит (-) | C41: =C27-C29 -> -235,067 | D41: =D27-D29 -> -119,705
B43: Заместитель Руководителя
B44: Исполнительного комитета,
B45: начальник управления финансов | C45: С.Р. Мулюкова

Sheet на 01.05.2025
A1: Сведения
A2: об исполнении бюджета города Набережные Челны
A3: на 01.05.2025 года
D4: тыс. руб.
A5: № п/п | B5: Наименование | C5: Бюджет с учетом уточненных МФ РТ безвозмездных поступлений по состоянию на 01.05.2025 | D5: Исполнение бюджета на 01.05.2025 года | E5: % исполнения годового плана
A7: 1 | B7: 2 | C7: 3 | D7: 4 | E7: 5
A8: ДОХОДЫ
B9: Налоговые доходы | C9: =SUM(C10:C18) -> 9,363,043 | D9: =SUM(D10:D18) -> 3,009,739 | E9: =D9/C9*100 -> 32.1
A10: 1 | B10: Налог на доходы физ.лиц | C10: 6,867,616 | D10: 2,024,396 | E10: =D10/C10*100 -> 29.5
A11: 2 | B11: Акцизы по подакцизным товарам (продукции), производимым на территории Российской Федерации | C11: 70,216 | D11: 23,509 | E11: =D11/C11*100 -> 33.5
A12: 3 | B12: Единый налог, взимаемый в связи с применением упрощенной системы налогообложения | C12: 1,278,987 | D12: 573,455 | E12: 44.8
A13: 4 | B13: Единый сельскохозяйственный налог | C13: 162 | D13: 118 | E13: =D13/C13*100 -> 73.1
A14: 5 | B14: Налог, взимаемый в связи с применением патентной системы налогообложения, зачисляемый в бюджеты городских округов | C14: 200,000 | D14: 159,783 | E14: 79.9
A15: 6 | B15: Налог на имущество физ.лиц | C15: 447,468 | D15: 21,300 | E15: 4.8
A16: 7 | B16: Земельный налог | C16: 406,000 | D16: 124,036 | E16: 30.6
A17: 8 | B17: Госпошлина | C17: 82,564 | D17: 82,322 | E17: 99.7
A18: 9 | B18: Прочие налоговые доходы | C18: 10,030.0 | D18: 819.4 | E18: 8.2
B19: Неналоговые доходы | C19: =SUM(C20:C24) -> 805,558 | D19: =SUM(D20:D24) -> 491,985 | E19: =D19/C19*100 -> 61.1
A20: 1 | B20: Арендная плата за землю | C20: 458,500 | D20: 350,853 | E20: =D20/C20*100 -> 76.5
A21: 2 | B21: Доходы от сдачи в аренду имущества | C21: 40,837 | D21: 13,908 | E21: 34.1
A22: 3 | B22: Доходы от реализации имущества | C22: 13,298 | D22: 0 | E22: 0.0
A23: 4 | B23: Доходы от продажи земельных участков | C23: 143,000 | D23: 47,440 | E23: 33.2
A24: 5 | B24: Прочие неналоговые доходы | C24: 149,923.0 | D24: 79,784.4 | E24: 53.2
B25: Итого собственных доходов | C25: =C9+C19 -> 10,168,601 | D25: =SUM(D9+D19) -> 3,501,724 | E25: 34.4
B26: Безвозмездные поступления | C26: 10,667,187 | D26: 4,364,681 | E26: 40.9
B27: Всего доходов | C27: =C26+C25 -> 20,835,788 | D27: =D26+D25 -> 7,866,405 | E27: =D27/C27*100 -> 37.8
A28: РАСХОДЫ
A29: № п/п | B29: Расходы местного бюджета | C29: =SUM(C30:C40) -> 21,070,856 | D29: =SUM(D30:D40) -> 7,849,595 | E29: 37.3
A30: 1 | B30: общегосударственные вопросы | C30: 1,052,760 | D30: 406,304 | E30: =D30/C30*100 -> 38.6
A31: 2 | B31: национальная безопасность и правоохранительная деятельность | C31: 159,957 | D31: 49,660 | E31: =D31/C31*100 -> 31.0
A32: 3 | B32: национальная экономика | C32: 1,805,725 | D32: 778,509 | E32: 43.1
A33: 4 | B33: жилищно-коммунальное хозяйство | C33: 833,832 | D33: 372,056 | E33: 44.6
A34: 5 | B34: охрана окружающей среды | C34: 19,879 | D34: 231 | E34: 1.2
A35: 6 | B35: образование | C35: 14,879,033 | D35: 5,465,744 | E35: 36.7
A36: 7 | B36: культура и кинематография | C36: 766,479 | D36: 240,409 | E36: 31.4
A37: 8 | B37: здравоохранение | C37: 10,699 | D37: 3,566 | E37: 33.3
A38: 9 | B38: социальная политика | C38: 562,914 | D38: 130,567 | E38: 23.2
A39: 10 | B39: физическая культура и спорт | C39: 974,946 | D39: 401,006 | E39: 41.1
A40: 11 | B40: межбюджетные трансферты | C40: 4,630 | D40: 1,543 | E40: 33.3
B41: Профицит, дефицит (-) | C41: =C27-C29 -> -235,067 | D41: =D27-D29 -> 16,810
B43: Заместитель Руководителя
B44: Исполнительного комитета,
B45: начальник управления финансов | C45: С.Р. Мулюкова

Sheet на 01.06.2025
A1: Сведения
A2: об исполнении бюджета города Набережные Челны
A3: на 01.06.2025 года
D4: тыс. руб.
A5: № п/п | B5: Наименование | C5: Бюджет с учетом уточненных МФ РТ безвозмездных поступлений по состоянию на 01.06.2025 | D5: Исполнение бюджета на 01.06.2025 года | E5: % исполнения годового плана
A7: 1 | B7: 2 | C7: 3 | D7: 4 | E7: 5
A8: ДОХОДЫ
B9: Налоговые доходы | C9: =SUM(C10:C18) -> 9,363,043 | D9: =SUM(D10:D18) -> 3,681,223 | E9: =D9/C9*100 -> 39.3
A10: 1 | B10: Налог на доходы физ.лиц | C10: 6,867,616 | D10: 2,627,759 | E10: =D10/C10*100 -> 38.3
A11: 2 | B11: Акцизы по подакцизным товарам (продукции), производимым на территории Российской Федерации | C11: 70,216 | D11: 29,152 | E11: =D11/C11*100 -> 41.5
A12: 3 | B12: Единый налог, взимаемый в связи с применением упрощенной системы налогообложения | C12: 1,278,987 | D12: =623236.82428+42.66 -> 623,279 | E12: 48.7
A13: 4 | B13: Единый сельскохозяйственный налог | C13: 162 | D13: 118 | E13: =D13/C13*100 -> 73.1
A14: 5 | B14: Налог, взимаемый в связи с применением патентной системы налогообложения, зачисляемый в бюджеты городских округов | C14: 200,000 | D14: =165407.60317-42.66 -> 165,365 | E14: 82.7
A15: 6 | B15: Налог на имущество физ.лиц | C15: 447,468 | D15: 23,343 | E15: 5.2
A16: 7 | B16: Земельный налог | C16: 406,000 | D16: 108,583 | E16: 26.7
A17: 8 | B17: Госпошлина | C17: 82,564 | D17: 101,786 | E17: 123.3
A18: 9 | B18: Прочие налоговые доходы | C18: 10,030.0 | D18: 1,838.3 | E18: 18.3
B19: Неналоговые доходы | C19: =SUM(C20:C24) -> 805,558 | D19: =SUM(D20:D24) -> 617,078 | E19: =D19/C19*100 -> 76.6
A20: 1 | B20: Арендная плата за землю | C20: 458,500 | D20: 370,198 | E20: =D20/C20*100 -> 80.7
A21: 2 | B21: Доходы от сдачи в аренду имущества | C21: 40,837 | D21: 22,049 | E21: 54.0
A22: 3 | B22: Доходы от реализации имущества | C22: 13,298 | D22: 6 | E22: 0.0
A23: 4 | B23: Доходы от продажи земельных участков | C23: 143,000 | D23: 56,649 | E23: 39.6
A24: 5 | B24: Прочие неналоговые доходы | C24: 149,923.0 | D24: 168,176.2 | E24: 112.2
B25: Итого собственных доходов | C25: =C9+C19 -> 10,168,601 | D25: =SUM(D9+D19) -> 4,298,301 | E25: 42.3
B26: Безвозмездные поступления | C26: 10,686,872 | D26: 5,303,252 | E26: 49.6
B27: Всего доходов | C27: =C26+C25 -> 20,855,474 | D27: =D26+D25 -> 9,601,553 | E27: =D27/C27*100 -> 46.0
A28: РАСХОДЫ
A29: № п/п | B29: Расходы местного бюджета | C29: =SUM(C30:C40) -> 21,090,541 | D29: =SUM(D30:D40) -> 9,527,992 | E29: 45.2
A30: 1 | B30: общегосударственные вопросы | C30: 1,064,772 | D30: 473,939 | E30: =D30/C30*100 -> 44.5
A31: 2 | B31: национальная безопасность и правоохранительная деятельность | C31: 159,957 | D31: 56,442 | E31: =D31/C31*100 -> 35.3
A32: 3 | B32: национальная экономика | C32: 1,805,725 | D32: 883,289 | E32: 48.9
A33: 4 | B33: жилищно-коммунальное хозяйство | C33: 833,832 | D33: 573,834 | E33: 68.8
A34: 5 | B34: охрана окружающей среды | C34: 19,879 | D34: 396 | E34: 2.0
A35: 6 | B35: образование | C35: 14,883,083 | D35: 6,556,387 | E35: 44.1
A36: 7 | B36: культура и кинематография | C36: 766,779 | D36: 465,209 | E36: 60.7
A37: 8 | B37: здравоохранение | C37: 10,930 | D37: 4,677 | E37: 42.8
A38: 9 | B38: социальная политика | C38: 563,537 | D38: 179,710 | E38: 31.9
A39: 10 | B39: физическая культура и спорт | C39: 977,415 | D39: 332,179 | E39: 34.0
A40: 11 | B40: межбюджетные трансферты | C40: 4,630 | D40: 1,929 | E40: 41.7
B41: Профицит, дефицит (-) | C41: =C27-C29 -> -235,067 | D41: =D27-D29 -> 73,561
B43: Заместитель Руководителя
B44: Исполнительного комитета,
B45: начальник управления финансов | C45: С.Р. Мулюкова

Sheet на 01.07.2025
A1: Сведения
A2: об исполнении бюджета города Набережные Челны
A3: на 01.07.2025 года
D4: тыс. руб.
A5: № п/п | B5: Наименование | C5: Бюджет с учетом уточненных МФ РТ безвозмездных поступлений по состоянию на 01.07.2025 | D5: Исполнение бюджета на 01.07.2025 года | E5: % исполнения годового плана
A7: 1 | B7: 2 | C7: 3 | D7: 4 | E7: 5
A8: ДОХОДЫ
B9: Налоговые доходы | C9: =SUM(C10:C18) -> 9,363,043 | D9: =SUM(D10:D18) -> 4,341,964 | E9: =D9/C9*100 -> 46.4
A10: 1 | B10: Налог на доходы физ.лиц | C10: 6,867,616 | D10: 3,209,146 | E10: =D10/C10*100 -> 46.7
A11: 2 | B11: Акцизы по подакцизным товарам (продукции), производимым на территории Российской Федерации | C11: 70,216 | D11: 29,271 | E11: =D11/C11*100 -> 41.7
A12: 3 | B12: Единый налог, взимаемый в связи с применением упрощенной системы налогообложения | C12: 1,278,987 | D12: 650,974 | E12: 50.9
A13: 4 | B13: Единый сельскохозяйственный налог | C13: 162 | D13: 118 | E13: =D13/C13*100 -> 73.1
A14: 5 | B14: Налог, взимаемый в связи с применением патентной системы налогообложения, зачисляемый в бюджеты городских округов | C14: 200,000 | D14: 187,609 | E14: 93.8
A15: 6 | B15: Налог на имущество физ.лиц | C15: 447,468 | D15: 25,529 | E15: 5.7
A16: 7 | B16: Земельный налог | C16: 406,000 | D16: 113,555 | E16: 28.0
A17: 8 | B17: Госпошлина | C17: 82,564 | D17: 122,765 | E17: 148.7
A18: 9 | B18: Прочие налоговые доходы | C18: 10,030.0 | D18: 2,997.4 | E18: 29.9
B19: Неналоговые доходы | C19: =SUM(C20:C24) -> 805,558 | D19: =SUM(D20:D24) -> 736,203 | E19: =D19/C19*100 -> 91.4
A20: 1 | B20: Арендная плата за землю | C20: 458,500 | D20: 423,210 | E20: =D20/C20*100 -> 92.3
A21: 2 | B21: Доходы от сдачи в аренду имущества | C21: 40,837 | D21: 23,498 | E21: 57.5
A22: 3 | B22: Доходы от реализации имущества | C22: 13,298 | D22: 1,063 | E22: 8.0
A23: 4 | B23: Доходы от продажи земельных участков | C23: 143,000 | D23: 63,533 | E23: 44.4
A24: 5 | B24: Прочие неналоговые доходы | C24: 149,923.0 | D24: 224,899.9 | E24: 150.0
B25: Итого собственных доходов | C25: =C9+C19 -> 10,168,601 | D25: =SUM(D9+D19) -> 5,078,167 | E25: 49.9
B26: Безвозмездные поступления | C26: 11,555,602 | D26: 6,978,291 | E26: 60.4
B27: Всего доходов | C27: =C26+C25 -> 21,724,203 | D27: =D26+D25 -> 12,056,458 | E27: =D27/C27*100 -> 55.5
A28: РАСХОДЫ
A29: № п/п | B29: Расходы местного бюджета | C29: =SUM(C30:C40) -> 21,984,114 | D29: =SUM(D30:D40) -> 11,815,870 | E29: 53.7
A30: 1 | B30: общегосударственные вопросы | C30: 1,215,100 | D30: 672,513 | E30: =D30/C30*100 -> 55.3
A31: 2 | B31: национальная безопасность и правоохранительная деятельность | C31: 169,008 | D31: 69,002 | E31: =D31/C31*100 -> 40.8
A32: 3 | B32: национальная экономика | C32: 2,183,666 | D32: 1,081,754 | E32: 49.5
A33: 4 | B33: жилищно-коммунальное хозяйство | C33: 992,969 | D33: 672,348 | E33: 67.7
A34: 5 | B34: охрана окружающей среды | C34: 19,932 | D34: 412 | E34: 2.1
A35: 6 | B35: образование | C35: 14,949,600 | D35: 8,020,284 | E35: 53.6
A36: 7 | B36: культура и кинематография | C36: 817,383 | D36: 658,305 | E36: 80.5
A37: 8 | B37: здравоохранение | C37: 30,936 | D37: 5,834 | E37: 18.9
A38: 9 | B38: социальная политика | C38: 607,254 | D38: 204,263 | E38: 33.6
A39: 10 | B39: физическая культура и спорт | C39: 993,635 | D39: 428,840 | E39: 43.2
A40: 11 | B40: межбюджетные трансферты | C40: 4,630 | D40: 2,315 | E40: 50.0
B41: Профицит, дефицит (-) | C41: =C27-C29 -> -259,910 | D41: =D27-D29 -> 240,588
B43: Заместитель Руководителя
B44: Исполнительного комитета,
B45: начальник управления финансов | C45: С.Р. Мулюкова

Sheet на 01.08.2025
A1: Сведения
A2: об исполнении бюджета города Набережные Челны
A3: на 01.08.2025 года
D4: тыс. руб.
A5: № п/п | B5: Наименование | C5: Бюджет с учетом уточненных МФ РТ безвозмездных поступлений по состоянию на 01.08.2025 | D5: Исполнение бюджета на 01.08.2025 года | E5: % исполнения годового плана
A7: 1 | B7: 2 | C7: 3 | D7: 4 | E7: 5
A8: ДОХОДЫ
B9: Налоговые доходы | C9: =SUM(C10:C18) -> 9,363,043 | D9: =SUM(D10:D18) -> 5,507,684 | E9: =D9/C9*100 -> 58.8
A10: 1 | B10: Налог на доходы физ.лиц | C10: 6,867,616 | D10: 4,049,624 | E10: =D10/C10*100 -> 59.0
A11: 2 | B11: Акцизы по подакцизным товарам (продукции), производимым на территории Российской Федерации | C11: 70,216 | D11: 41,202 | E11: =D11/C11*100 -> 58.7
A12: 3 | B12: Единый налог, взимаемый в связи с применением упрощенной системы налогообложения | C12: 1,278,987 | D12: 879,999 | E12: 68.8
A13: 4 | B13: Единый сельскохозяйственный налог | C13: 162 | D13: 253 | E13: =D13/C13*100 -> 156.2
A14: 5 | B14: Налог, взимаемый в связи с применением патентной системы налогообложения, зачисляемый в бюджеты городских округов | C14: 200,000 | D14: 183,964 | E14: 92.0
A15: 6 | B15: Налог на имущество физ.лиц | C15: 447,468 | D15: 27,203 | E15: 6.1
A16: 7 | B16: Земельный налог | C16: 406,000 | D16: 174,795 | E16: =D16/C16*100 -> 43.1
A17: 8 | B17: Госпошлина | C17: 82,564 | D17: 146,561 | E17: 177.5
A18: 9 | B18: Прочие налоговые доходы | C18: 10,030.0 | D18: 4,082.0 | E18: 40.7
B19: Неналоговые доходы | C19: =SUM(C20:C24) -> 805,558 | D19: =SUM(D20:D24) -> 895,125 | E19: =D19/C19*100 -> 111.1
A20: 1 | B20: Арендная плата за землю | C20: 458,500 | D20: 533,658 | E20: =D20/C20*100 -> 116.4
A21: 2 | B21: Доходы от сдачи в аренду имущества | C21: 40,837 | D21: 33,316 | E21: 81.6
A22: 3 | B22: Доходы от реализации имущества | C22: 13,298 | D22: 1,063 | E22: 8.0
A23: 4 | B23: Доходы от продажи земельных участков | C23: 143,000 | D23: 74,357 | E23: 52.0
A24: 5 | B24: Прочие неналоговые доходы | C24: 149,923.0 | D24: 252,731.2 | E24: 168.6
B25: Итого собственных доходов | C25: =C9+C19 -> 10,168,601 | D25: =SUM(D9+D19) -> 6,402,809 | E25: 63.0
B26: Безвозмездные поступления | C26: 11,558,964 | D26: 7,424,955 | E26: 64.2
B27: Всего доходов | C27: =C26+C25 -> 21,727,566 | D27: =D26+D25 -> 13,827,764 | E27: =D27/C27*100 -> 63.6
A28: РАСХОДЫ
A29: № п/п | B29: Расходы местного бюджета | C29: =SUM(C30:C40) -> 21,987,476 | D29: =SUM(D30:D40) -> 13,763,391 | E29: 62.6
A30: 1 | B30: общегосударственные вопросы | C30: 1,215,968 | D30: 728,501 | E30: =D30/C30*100 -> 59.9
A31: 2 | B31: национальная безопасность и правоохранительная деятельность | C31: 169,008 | D31: 89,435 | E31: =D31/C31*100 -> 52.9
A32: 3 | B32: национальная экономика | C32: 2,183,666 | D32: 1,208,272 | E32: 55.3
A33: 4 | B33: жилищно-коммунальное хозяйство | C33: 992,969 | D33: 745,015 | E33: 75.0
A34: 5 | B34: охрана окружающей среды | C34: 19,932 | D34: 712 | E34: 3.6
A35: 6 | B35: образование | C35: 14,949,600 | D35: 9,236,359 | E35: 61.8
A36: 7 | B36: культура и кинематография | C36: 817,443 | D36: 680,591 | E36: 83.3
A37: 8 | B37: здравоохранение | C37: 30,936 | D37: 6,847 | E37: 22.1
A38: 9 | B38: социальная политика | C38: 607,254 | D38: 230,863 | E38: 38.0
A39: 10 | B39: физическая культура и спорт | C39: 996,070 | D39: 834,095 | E39: 83.7
A40: 11 | B40: межбюджетные трансферты | C40: 4,630 | D40: 2,701 | E40: 58.3
B41: Профицит, дефицит (-) | C41: =C27-C29 -> -259,910 | D41: =D27-D29 -> 64,373
B43: Заместитель Руководителя
B44: Исполнительного комитета,
B45: начальник управления финансов | C45: С.Р. Мулюкова

Sheet на 01.09.2025
A1: Сведения
A2: об исполнении бюджета города Набережные Челны
A3: на 01.09.2025 года
D4: тыс. руб.
A5: № п/п | B5: Наименование | C5: Бюджет с учетом уточненных МФ РТ безвозмездных поступлений по состоянию на 01.09.2025 | D5: Исполнение бюджета на 01.09.2025 года | E5: % исполнения годового плана
A7: 1 | B7: 2 | C7: 3 | D7: 4 | E7: 5
A8: ДОХОДЫ
B9: Налоговые доходы | C9: =SUM(C10:C18) -> 9,363,043 | D9: =SUM(D10:D18) -> 6,188,460 | E9: =D9/C9*100 -> 66.1
A10: 1 | B10: Налог на доходы физ.лиц | C10: 6,867,616 | D10: 4,668,359 | E10: =D10/C10*100 -> 68.0
A11: 2 | B11: Акцизы по подакцизным товарам (продукции), производимым на территории Российской Федерации | C11: 70,216 | D11: 47,390 | E11: =D11/C11*100 -> 67.5
A12: 3 | B12: Единый налог, взимаемый в связи с применением упрощенной системы налогообложения | C12: 1,278,987 | D12: 915,707 | E12: 71.6
A13: 5 | B13: Единый сельскохозяйственный налог | C13: 162 | D13: 256 | E13: =D13/C13*100 -> 158.1
A14: 6 | B14: Налог, взимаемый в связи с применением патентной системы налогообложения, зачисляемый в бюджеты городских округов | C14: 200,000 | D14: 185,023 | E14: 92.5
A15: 7 | B15: Налог на имущество физ.лиц | C15: 447,468 | D15: 35,380 | E15: 7.9
A16: 9 | B16: Земельный налог | C16: 406,000 | D16: 165,049 | E16: =D16/C16*100 -> 40.7
A17: 11 | B17: Госпошлина | C17: 82,564 | D17: 166,047 | E17: 201.1
A18: 12 | B18: Прочие налоговые доходы | C18: 10,030.0 | D18: 5,247.0 | E18: 52.3
B19: Неналоговые доходы | C19: =SUM(C20:C24) -> 805,558 | D19: =SUM(D20:D24) -> 964,426 | E19: =D19/C19*100 -> 119.7
A20: 1 | B20: Арендная плата за землю | C20: 458,500 | D20: 573,226 | E20: =D20/C20*100 -> 125.0
A21: 2 | B21: Доходы от сдачи в аренду имущества | C21: 40,837 | D21: 34,929 | E21: 85.5
A22: 3 | B22: Доходы от реализации имущества | C22: 13,298 | D22: 1,063 | E22: 8.0
A23: 4 | B23: Доходы от продажи земельных участков | C23: 143,000 | D23: 90,505 | E23: 63.3
A24: 5 | B24: Прочие неналоговые доходы | C24: 149,923.0 | D24: 264,704.3 | E24: 176.6
B25: Итого собственных доходов | C25: =C9+C19 -> 10,168,601 | D25: =SUM(D9+D19) -> 7,152,886 | E25: 70.3
B26: Безвозмездные поступления | C26: 11,899,446 | D26: 8,470,417 | E26: 71.2
B27: Всего доходов | C27: =C26+C25 -> 22,068,048 | D27: =D26+D25 -> 15,623,303 | E27: =D27/C27*100 -> 70.8
A28: РАСХОДЫ
A29: № п/п | B29: Расходы местного бюджета | C29: =SUM(C30:C40) -> 22,327,958 | D29: =SUM(D30:D40) -> 15,289,360 | E29: 68.5
A30: 1 | B30: общегосударственные вопросы | C30: 1,293,643 | D30: 884,489 | E30: =D30/C30*100 -> 68.4
A31: 2 | B31: национальная безопасность и правоохранительная деятельность | C31: 191,644 | D31: 114,512 | E31: =D31/C31*100 -> 59.8
A32: 3 | B32: национальная экономика | C32: 2,268,271 | D32: 1,341,276 | E32: 59.1
A33: 4 | B33: жилищно-коммунальное хозяйство | C33: 1,171,507 | D33: 916,361 | E33: 78.2
A34: 5 | B34: охрана окружающей среды | C34: 19,932 | D34: 712 | E34: 3.6
A35: 6 | B35: образование | C35: 14,921,623 | D35: 10,469,616 | E35: 70.2
A36: 7 | B36: культура и кинематография | C36: 819,436 | D36: 592,678 | E36: 72.3
A37: 8 | B37: здравоохранение | C37: 30,916 | D37: 7,695 | E37: 24.9
A38: 9 | B38: социальная политика | C38: 607,254 | D38: 239,755 | E38: 39.5
A39: 10 | B39: физическая культура и спорт | C39: 999,102 | D39: 719,179 | E39: 72.0
A40: 11 | B40: межбюджетные трансферты | C40: 4,630 | D40: 3,087 | E40: 66.7
B41: Профицит, дефицит (-) | C41: =C27-C29 -> -259,910 | D41: =D27-D29 -> 333,943
B43: Заместитель Руководителя
B44: Исполнительного комитета,
B45: начальник управления финансов | C45: С.Р. Мулюкова

Sheet на 01.10.2025
A1: Сведения
A2: об исполнении бюджета города Набережные Челны
A3: на 01.10.2025 года
D4: тыс. руб.
A5: № п/п | B5: Наименование | C5: Бюджет с учетом уточненных МФ РТ безвозмездных поступлений по состоянию на 01.10.2025 | D5: Исполнение бюджета на 01.10.2025 года | E5: % исполнения годового плана
A7: 1 | B7: 2 | C7: 3 | D7: 4 | E7: 5
A8: ДОХОДЫ
B9: Налоговые доходы | C9: =SUM(C10:C18) -> 9,363,043 | D9: =SUM(D10:D18) -> 7,266,083 | E9: =D9/C9*100 -> 77.6
A10: 1 | B10: Налог на доходы физ.лиц | C10: 6,867,616 | D10: 5,583,054 | E10: =D10/C10*100 -> 81.3
A11: 2 | B11: Акцизы по подакцизным товарам (продукции), производимым на территории Российской Федерации | C11: 70,216 | D11: 53,306 | E11: =D11/C11*100 -> 75.9
A12: 3 | B12: Единый налог, взимаемый в связи с применением упрощенной системы налогообложения | C12: 1,278,987 | D12: 925,320 | E12: 72.3
A13: 4 | B13: Единый сельскохозяйственный налог | C13: 162 | D13: 977 | E13: =D13/C13*100 -> 603.0
A14: 5 | B14: Налог, взимаемый в связи с применением патентной системы налогообложения, зачисляемый в бюджеты городских округов | C14: 200,000 | D14: 188,874 | E14: 94.4
A15: 6 | B15: Налог на имущество физ.лиц | C15: 447,468 | D15: 129,150 | E15: 28.9
A16: 7 | B16: Земельный налог | C16: 406,000 | D16: 190,942 | E16: =D16/C16*100 -> 47.0
A17: 8 | B17: Госпошлина | C17: 82,564 | D17: 186,848 | E17: 226.3
A18: 9 | B18: Прочие налоговые доходы | C18: 10,030 | D18: 7,612 | E18: 75.9
B19: Неналоговые доходы | C19: =SUM(C20:C24) -> 806,186 | D19: =SUM(D20:D24) -> 1,024,316 | E19: =D19/C19*100 -> 127.1
A20: 1 | B20: Арендная плата за землю | C20: 458,500 | D20: 609,394 | E20: =D20/C20*100 -> 132.9
A21: 2 | B21: Доходы от сдачи в аренду имущества | C21: 40,874 | D21: 36,367 | E21: 89.0
A22: 3 | B22: Доходы от реализации имущества | C22: 13,304 | D22: 1,410 | E22: 10.6
A23: 4 | B23: Доходы от продажи земельных участков | C23: 143,000 | D23: 103,508 | E23: 72.4
A24: 5 | B24: Прочие неналоговые доходы | C24: 150,508.1 | D24: 273,636.9 | E24: 181.8
B25: Итого собственных доходов | C25: =C9+C19 -> 10,169,229 | D25: =SUM(D9+D19) -> 8,290,399 | E25: 81.5
B26: Безвозмездные поступления | C26: 11,975,602 | D26: 9,359,000 | E26: 78.2
B27: Всего доходов | C27: =C26+C25 -> 22,144,831 | D27: =D26+D25 -> 17,649,399 | E27: =D27/C27*100 -> 79.7
A28: РАСХОДЫ
A29: № п/п | B29: Расходы местного бюджета | C29: =SUM(C30:C40) -> 22,404,741 | D29: =SUM(D30:D40) -> 16,994,302 | E29: 75.9
A30: 1 | B30: общегосударственные вопросы | C30: 1,321,353 | D30: 950,860 | E30: =D30/C30*100 -> 72.0
A31: 2 | B31: национальная безопасность и правоохранительная деятельность | C31: 188,636 | D31: 120,200 | E31: =D31/C31*100 -> 63.7
A32: 3 | B32: национальная экономика | C32: 2,303,411 | D32: 1,650,618 | E32: 71.7
A33: 4 | B33: жилищно-коммунальное хозяйство | C33: 1,199,140 | D33: 965,458 | E33: 80.5
A34: 5 | B34: охрана окружающей среды | C34: 19,932 | D34: 712 | E34: 3.6
A35: 6 | B35: образование | C35: 14,903,876 | D35: 11,748,497 | E35: 78.8
A36: 7 | B36: культура и кинематография | C36: 822,067 | D36: 546,840 | E36: 66.5
A37: 8 | B37: здравоохранение | C37: 32,510 | D37: 8,664 | E37: 26.6
A38: 9 | B38: социальная политика | C38: 607,519 | D38: 248,211 | E38: 40.9
A39: 10 | B39: физическая культура и спорт | C39: 1,001,666 | D39: 750,769 | E39: 75.0
A40: 11 | B40: межбюджетные трансферты | C40: 4,630 | D40: 3,473 | E40: 75.0
B41: Профицит, дефицит (-) | C41: =C27-C29 -> -259,910 | D41: =D27-D29 -> 655,097
B43: Заместитель Руководителя
B44: Исполнительного комитета,
B45: начальник управления финансов | C45: С.Р. Мулюкова

Sheet на 01.11.2025
A1: Сведения
A2: об исполнении бюджета города Набережные Челны
A3: на 01.11.2025 года
D4: тыс. руб.
A5: № п/п | B5: Наименование | C5: Бюджет с учетом уточненных МФ РТ безвозмездных поступлений по состоянию на 01.11.2025 | D5: Исполнение бюджета на 01.11.2025 года | E5: % исполнения годового плана
A7: 1 | B7: 2 | C7: 3 | D7: 4 | E7: 5
A8: ДОХОДЫ
B9: Налоговые доходы | C9: =SUM(C10:C18) -> 9,363,043 | D9: =SUM(D10:D18) -> 8,684,849 | E9: =D9/C9*100 -> 92.8
A10: 1 | B10: Налог на доходы физ.лиц | C10: 6,867,616 | D10: 6,514,405 | E10: =D10/C10*100 -> 94.9
A11: 2 | B11: Акцизы по подакцизным товарам (продукции), производимым на территории Российской Федерации | C11: 70,216 | D11: 59,204 | E11: =D11/C11*100 -> 84.3
A12: 3 | B12: Единый налог, взимаемый в связи с применением упрощенной системы налогообложения | C12: 1,278,987 | D12: 1,185,803 | E12: 92.7
A13: 4 | B13: Единый сельскохозяйственный налог | C13: 162 | D13: 1,013 | E13: =D13/C13*100 -> 625.1
A14: 5 | B14: Налог, взимаемый в связи с применением патентной системы налогообложения, зачисляемый в бюджеты городских округов | C14: 200,000 | D14: 199,115 | E14: 99.6
A15: 6 | B15: Налог на имущество физ.лиц | C15: 447,468 | D15: 233,308 | E15: 52.1
A16: 7 | B16: Земельный налог | C16: 406,000 | D16: 269,919 | E16: =D16/C16*100 -> 66.5
A17: 8 | B17: Госпошлина | C17: 82,564 | D17: 212,872 | E17: 257.8
A18: 9 | B18: Прочие налоговые доходы | C18: 10,030 | D18: 9,210 | E18: 91.8
B19: Неналоговые доходы | C19: =SUM(C20:C24) -> 806,186 | D19: =SUM(D20:D24) -> 1,160,180 | E19: =D19/C19*100 -> 143.9
A20: 1 | B20: Арендная плата за землю | C20: 458,500 | D20: 704,622 | E20: =D20/C20*100 -> 153.7
A21: 2 | B21: Доходы от сдачи в аренду имущества | C21: 40,874 | D21: 46,425 | E21: 113.6
A22: 3 | B22: Доходы от реализации имущества | C22: 13,304 | D22: 2,048 | E22: 15.4
A23: 4 | B23: Доходы от продажи земельных участков | C23: 143,000 | D23: 120,029 | E23: 83.9
A24: 5 | B24: Прочие неналоговые доходы | C24: 150,508.1 | D24: 287,057.3 | E24: 190.7
B25: Итого собственных доходов | C25: =C9+C19 -> 10,169,229 | D25: =SUM(D9+D19) -> 9,845,029 | E25: 96.8
B26: Безвозмездные поступления | C26: 12,059,046 | D26: 10,976,834 | E26: 91.0
B27: Всего доходов | C27: =C26+C25 -> 22,228,275 | D27: =D26+D25 -> 20,821,863 | E27: =D27/C27*100 -> 93.7
A28: РАСХОДЫ
A29: № п/п | B29: Расходы местного бюджета | C29: =SUM(C30:C40) -> 22,488,185 | D29: =SUM(D30:D40) -> 19,900,028 | E29: 88.5
A30: 1 | B30: общегосударственные вопросы | C30: 1,324,403 | D30: 1,105,597 | E30: =D30/C30*100 -> 83.5
A31: 2 | B31: национальная безопасность и правоохранительная деятельность | C31: 188,636 | D31: 148,980 | E31: =D31/C31*100 -> 79.0
A32: 3 | B32: национальная экономика | C32: 2,340,550 | D32: 1,782,874 | E32: 76.2
A33: 4 | B33: жилищно-коммунальное хозяйство | C33: 1,327,440 | D33: 1,060,058 | E33: 79.9
A34: 5 | B34: охрана окружающей среды | C34: 19,932 | D34: 1,936 | E34: 9.7
A35: 6 | B35: образование | C35: 14,854,804 | D35: 13,866,490 | E35: 93.3
A36: 7 | B36: культура и кинематография | C36: 852,995 | D36: 736,204 | E36: 86.3
A37: 8 | B37: здравоохранение | C37: 32,510 | D37: 10,119 | E37: 31.1
A38: 9 | B38: социальная политика | C38: 607,519 | D38: 288,050 | E38: 47.4
A39: 10 | B39: физическая культура и спорт | C39: 934,765 | D39: 895,863 | E39: 95.8
A40: 11 | B40: межбюджетные трансферты | C40: 4,630 | D40: 3,859 | E40: 83.3
B41: Профицит, дефицит (-) | C41: =C27-C29 -> -259,910 | D41: =D27-D29 -> 921,834
B43: Заместитель Руководителя
B44: Исполнительного комитета,
B45: начальник управления финансов | C45: С.Р. Мулюкова

Sheet на 01.12.2025
A1: Сведения
A2: об исполнении бюджета города Набережные Челны
A3: на 01.12.2025 года
D4: тыс. руб.
A5: № п/п | B5: Наименование | C5: Бюджет с учетом уточненных МФ РТ безвозмездных поступлений по состоянию на 01.12.2025 | D5: Исполнение бюджета на 01.12.2025 года | E5: % исполнения годового плана
A7: 1 | B7: 2 | C7: 3 | D7: 4 | E7: 5
A8: ДОХОДЫ
B9: Налоговые доходы | C9: =SUM(C10:C18) -> 9,363,043 | D9: =SUM(D10:D18) -> 9,647,653 | E9: =D9/C9*100 -> 103.0
A10: 1 | B10: Налог на доходы физ.лиц | C10: 6,867,616 | D10: 7,188,208 | E10: =D10/C10*100 -> 104.7
A11: 2 | B11: Акцизы по подакцизным товарам (продукции), производимым на территории Российской Федерации | C11: 70,216 | D11: 65,411 | E11: =D11/C11*100 -> 93.2
A12: 3 | B12: Единый налог, взимаемый в связи с применением упрощенной системы налогообложения | C12: 1,278,987 | D12: 1,211,664 | E12: 94.7
A13: 4 | B13: Единый сельскохозяйственный налог | C13: 162 | D13: 1,013 | E13: =D13/C13*100 -> 625.1
A14: 5 | B14: Налог, взимаемый в связи с применением патентной системы налогообложения, зачисляемый в бюджеты городских округов | C14: 200,000 | D14: 199,749 | E14: 99.9
A15: 6 | B15: Налог на имущество физ.лиц | C15: 447,468 | D15: 437,911 | E15: 97.9
A16: 7 | B16: Земельный налог | C16: 406,000 | D16: 297,254 | E16: =D16/C16*100 -> 73.2
A17: 8 | B17: Госпошлина | C17: 82,564 | D17: 234,115 | E17: 283.6
A18: 9 | B18: Прочие налоговые доходы | C18: 10,030 | D18: 12,327 | E18: 122.9
B19: Неналоговые доходы | C19: =SUM(C20:C24) -> 806,186 | D19: =SUM(D20:D24) -> 1,210,655 | E19: =D19/C19*100 -> 150.2
A20: 1 | B20: Арендная плата за землю | C20: 458,500 | D20: 741,075 | E20: =D20/C20*100 -> 161.6
A21: 2 | B21: Доходы от сдачи в аренду имущества | C21: 40,874 | D21: 47,895 | E21: 117.2
A22: 3 | B22: Доходы от реализации имущества | C22: 13,304 | D22: 2,048 | E22: 15.4
A23: 4 | B23: Доходы от продажи земельных участков | C23: 143,000 | D23: 123,327 | E23: 86.2
A24: 5 | B24: Прочие неналоговые доходы | C24: 150,508.1 | D24: 296,310.1 | E24: 196.9
B25: Итого собственных доходов | C25: =C9+C19 -> 10,169,229 | D25: =SUM(D9+D19) -> 10,858,308 | E25: 106.8
B26: Безвозмездные поступления | C26: 12,570,681 | D26: 11,997,054 | E26: 95.4
B27: Всего доходов | C27: =C26+C25 -> 22,739,910 | D27: =D26+D25 -> 22,855,362 | E27: =D27/C27*100 -> 100.5
A28: РАСХОДЫ
A29: № п/п | B29: Расходы местного бюджета | C29: =SUM(C30:C40) -> 22,999,821 | D29: =SUM(D30:D40) -> 19,866,394 | E29: 86.4
A30: 1 | B30: общегосударственные вопросы | C30: 1,333,419 | D30: 1,151,864 | E30: =D30/C30*100 -> 86.4
A31: 2 | B31: национальная безопасность и правоохранительная деятельность | C31: 182,549 | D31: 158,747 | E31: =D31/C31*100 -> 87.0
A32: 3 | B32: национальная экономика | C32: 2,317,544 | D32: 2,113,319 | E32: 91.2
A33: 4 | B33: жилищно-коммунальное хозяйство | C33: 1,361,032 | D33: 1,139,765 | E33: 83.7
A34: 5 | B34: охрана окружающей среды | C34: 19,932 | D34: 5,325 | E34: 26.7
A35: 6 | B35: образование | C35: 15,304,999 | D35: 13,463,580 | E35: 88.0
A36: 7 | B36: культура и кинематография | C36: 859,488 | D36: 689,877 | E36: 80.3
A37: 8 | B37: здравоохранение | C37: 33,226 | D37: 12,134 | E37: 36.5
A38: 9 | B38: социальная политика | C38: 608,019 | D38: 323,817 | E38: 53.3
A39: 10 | B39: физическая культура и спорт | C39: 974,982 | D39: 803,720 | E39: 82.4
A40: 11 | B40: межбюджетные трансферты | C40: 4,630 | D40: 4,245 | E40: 91.7
B41: Профицит, дефицит (-) | C41: =C27-C29 -> -259,910 | D41: =D27-D29 -> 2,988,968
B43: Заместитель Руководителя
B44: Исполнительного комитета,
B45: начальник управления финансов | C45: С.Р. Мулюкова

Sheet на 01.01.2026
A1: Сведения
A2: об исполнении бюджета города Набережные Челны
A3: на 01.01.2026 года
D4: тыс. руб.
A5: № п/п | B5: Наименование | C5: Бюджет с учетом уточненных МФ РТ безвозмездных поступлений по состоянию на 29.12.2025 | D5: Исполнение бюджета на 01.01.2026 года | E5: % исполнения годового плана
A7: 1 | B7: 2 | C7: 3 | D7: 4 | E7: 5
A8: ДОХОДЫ
B9: Налоговые доходы | C9: =SUM(C10:C18) -> 10,889,741 | D9: =SUM(D10:D18) -> 10,977,621 | E9: =D9/C9*100 -> 100.8
A10: 1 | B10: Налог на доходы физ.лиц | C10: 8,290,452 | D10: 8,290,452 | E10: =D10/C10*100 -> 100.0
A11: 2 | B11: Акцизы по подакцизным товарам (продукции), производимым на территории Российской Федерации | C11: 71,552 | D11: 71,227 | E11: =D11/C11*100 -> 99.5
A12: 3 | B12: Единый налог, взимаемый в связи с применением упрощенной системы налогообложения | C12: 1,221,506 | D12: 1,227,642 | E12: 100.5
A13: 5 | B13: Единый сельскохозяйственный налог | C13: 1,013 | D13: 1,013 | E13: =D13/C13*100 -> 100.0
A14: 6 | B14: Налог, взимаемый в связи с применением патентной системы налогообложения, зачисляемый в бюджеты городских округов | C14: 232,034 | D14: 292,577 | E14: 126.1
A15: 7 | B15: Налог на имущество физ.лиц | C15: 495,000 | D15: 515,962 | E15: 104.2
A16: 9 | B16: Земельный налог | C16: 310,619 | D16: 310,619 | E16: =D16/C16*100 -> 100.0
A17: 11 | B17: Госпошлина | C17: 254,441 | D17: 254,442 | E17: 100.0
A18: 12 | B18: Прочие налоговые доходы | C18: 13,124 | D18: 13,687 | E18: 104.3
B19: Неналоговые доходы | C19: =SUM(C20:C24) -> 1,302,046 | D19: =SUM(D20:D24) -> 1,368,474 | E19: =D19/C19*100 -> 105.1
A20: 2 | B20: Арендная плата за землю | C20: 810,835 | D20: 844,212 | E20: =D20/C20*100 -> 104.1
A21: 4 | B21: Доходы от сдачи в аренду имущества | C21: 40,823 | D21: =49798.3386+'[1]на 01.01.2026'!$D$27 -> 50,382 | E21: 123.4
A22: 12 | B22: Доходы от реализации имущества | C22: 2,048 | D22: 3,405 | E22: 166.3
A23: 13 | B23: Доходы от продажи земельных участков | C23: 140,411 | D23: 157,353 | E23: 112.1
A24: 15 | B24: Прочие неналоговые доходы | C24: 307,928.7 | D24: 313,121.9 | E24: 101.7
B25: Итого собственных доходов | C25: =C9+C19 -> 12,191,787 | D25: =SUM(D9+D19) -> 12,346,095 | E25: 101.3
B26: Безвозмездные поступления | C26: 12,864,912 | D26: 12,802,263 | E26: 99.5
B27: Всего доходов | C27: =C26+C25 -> 25,056,699 | D27: =D26+D25 -> 25,148,358 | E27: =D27/C27*100 -> 100.4
A28: РАСХОДЫ
A29: № п/п | B29: Расходы местного бюджета | C29: =SUM(C30:C40) -> 25,375,870 | D29: =SUM(D30:D40) -> 24,876,373 | E29: 98.0
A30: 1 | B30: общегосударственные вопросы | C30: 3,841,796 | D30: 3,619,874 | E30: =D30/C30*100 -> 94.2
A31: 2 | B31: национальная безопасность и правоохранительная деятельность | C31: 226,722 | D31: 225,468 | E31: =D31/C31*100 -> 99.4
A32: 3 | B32: национальная экономика | C32: 2,442,599 | D32: 2,393,512 | E32: 98.0
A33: 4 | B33: жилищно-коммунальное хозяйство | C33: 1,275,725 | D33: 1,240,082 | E33: 97.2
A34: 5 | B34: охрана окружающей среды | C34: 8,344 | D34: 8,316 | E34: 99.7
A35: 6 | B35: образование | C35: 15,178,649 | D35: 15,067,089 | E35: 99.3
A36: 7 | B36: культура и кинематография | C36: 814,955 | D36: 800,366 | E36: 98.2
A37: 8 | B37: здравоохранение | C37: 40,913 | D37: 40,587 | E37: 99.2
A38: 9 | B38: социальная политика | C38: 543,042 | D38: 485,657 | E38: 89.4
A39: 10 | B39: физическая культура и спорт | C39: 998,493 | D39: 990,792 | E39: 99.2
A40: 11 | B40: межбюджетные трансферты | C40: 4,630 | D40: 4,630 | E40: 100.0
B41: Профицит, дефицит (-) | C41: =C27-C29 -> -319,171 | D41: =D27-D29 -> 271,985
B43: Заместитель Руководителя
B44: Исполнительного комитета,
B45: начальник управления финансов | C45: С.Р. Мулюкова
